Workbook

Sheet CONSOLIDAÇÃO
B1: NOME PLANILHA | C1: ABA | D1: OBJETIVO DE APRENDIZAGEM | E1: CLAREZA | F1: PERTINÊNCIA | G1: COMENTÁRIO
B2: Educação Infantil - Bebês.xlsx | C2: O EU, O OUTRO, O NÓS - Bebês | D2: (EIBEEO01) Perceber que suas ações têm efeitos nas outras crianças e adultos, constituindo relações de amizade. | F2: X | G2: retirar "de amizade" por "interpessoais"
B3: Educação Infantil - Bebês.xlsx | C3: CORPO, GESTOS E MOV. - Bebês | D3: (EIBECG03) Experimentar as possibilidades de seu corpo nas brincadeiras ou diante das demandas proporcionadas por ambientes acolhedores e desafiantes. | E3: X | G3: acrescentar após "brincadeiras", o termo "e interações'
B4: Educação Infantil - Bebês.xlsx | C4: TRAÇOS, SONS, FORMAS - Bebês | D4: (EIBETS03) Utilizar materiais com possibilidades transformadoras (argila, massa de modelar, papel, tinta), para criar objetos bidimensionais e tridimensionais. | E4: X | G4: adicionar após "materiais", o termo "variados" e após "tintas" adicionar "e outros"
B5: Educação Infantil - Bebês.xlsx | C5: ESPAÇOS, TEMPOS, QNT. - Bebês | D5: (EIBEET02) Apontar aos colegas e adultos alguma característica de pessoas, objetos e situações que tenha chamado sua atenção. | E5: X | G5: adicionar após objetos, "animais, fenomenos da natureza e outras"
B6: Educação Infantil - Bem pequenas.xlsx | C6: ESCUTA, FALA, PENS. - BP | D6: (EIBPEF05) Expressar seus sentimentos e opiniões, usando a linguagem verbal. | E6: X | G6: substituir "sentimentos" por "emoções" e adicionar "vontades"
B7: Educação Infantil - Bem pequenas.xlsx | C7: ESPAÇOS, TEMPOS, QNT. - BP | D7: (EIBPET03) Identificar relações espaciais (dentro e fora, em cima, embaixo e do lado), e temporais (antes e depois). | E7: X | G7: adicionar após "do lado", "na frente, atrás e entre" e após "depois", adicionar "devagar e rápido"
B8: Educação Infantil - Bem pequenas.xlsx | C8: TRAÇOS, SONS, FORMAS - BP | D8: (EIBPTS03) Reconhecer as possibilidades de se expressar em diferentes linguagens como a do desenho, do cinema, da música, do movimento, do teatro. | F8: X | G8: e outras.
B9: Educação Infantil - Bem pequenas.xlsx | C9: TRAÇOS, SONS, FORMAS - BP | D9: (EIBPTS04) Organizar com os colegas o ambiente para as brincadeiras ou para ocasiões especiais, tais como festas e apresentações. | F9: X | G9: substituir "organizar" por "Participar da organização"
B10: Educação Infantil - Pequenas.xlsx | C10: CORPO, GESTOS E MOV. - Pequenas | D10: (EICPCG04) Criar formas diversificadas para expressar ideias, opiniões, sentimentos, sensações e emoções com o seu corpo tanto nas situações do cotidiano como em brincadeiras, dança, teatro, música. | F10: X | G10: excluir "tanto" e adicionar após "música", "e outros"
B11: Educação Infantil - Pequenas.xlsx | C11: ESCUTA, FALA, PENS. - Pequenas | D11: (EICPEF05) Levantar hipóteses sobre textos escritos sobre as características da escrita: frases, palavras, espaços em branco, sinais de pontuação e outras marcas, compreendendo que a escrita é uma representação da fala. | F11: X | G11: adicionar após "representação" o termo "simbólica"
B12: Ensino Fund. I (1º, 2º e 3º anos).xlsx | C12: LINGUAGENS. LÍNGUA PORT I | D12: (EF01LP02) Ler palavras e pequenos textos, apoiando-se em pistas gráficas e semânticas. | F12: X | G12: Retirar o termo" pistas" uma vez que o professor não ensina por meio de "pistas"e acrescentar materiais grafofônicos
B13: Ensino Fund. I (1º, 2º e 3º anos).xlsx | C13: LINGUAGENS. LÍNGUA PORT I | D13: (EF01LP18) Utilizar, com a mediação do/a professor/a e em colaboração com colegas, “software” para construir e publicar textos curtos. | F13: X | G13: Garantir equipamentos e internet de qualidade em todas as escolas públicas
B14: Ensino Fund. II - Arte.xlsx | C14: ARTES | D14: (EF06AR22) Identificar e manipular diferentes tecnologias para apreciar, produzir, registrar e compartilhar práticas e repertórios musicais de modo ético, considerando, em especial, as culturas infanto-juvenis (CD). | E14: X | G14: Substituir modo "ético" por "pedagogicamente"
B15: Ensino Fund. II - Arte.xlsx | C15: ARTES | D15: (EF06AR23) Reconhecer e valorizar o patrimônio musical, material e imaterial, de culturas diversas, em especial as de matriz africanas e indígenas, em diferentes épocas, privilegiando as culturas infanto-juvenis (CIA, DHC). | E15: X | G15: Não restringir o conceito de cultura ao conceito de cultura infanto juvenil.
B16: Ensino Fund. II - Arte.xlsx | C16: ARTES | D16: (EF06AR24) Compreender usos e funções da música em seus contextos de produção e circulação, considerando, em especial, contextos próximos aos estudantes e as culturas infanto-juvenis (ES). | E16: X | G16: Não restringir o conceito de cultura ao conceito de cultura infanto juvenil.
B17: Ensino Fund. II - Arte.xlsx | C17: ARTES | D17: (EF06AR26) Interagir criticamente com diferentes dispositivos e equipamentos culturais de circulação da música e do conhecimento musical, considerando, em especial, aqueles que contemplam as culturas infanto-juvenis (ES, DHC). | E17: X | G17: Não restringir o conceito de cultura ao conceito de cultura infanto juvenil.
B18: Ensino Fund. II - Arte.xlsx | C18: ARTES | D18: (EF06AR27) Compreender práticas musicais nas suas relações com as esferas social, cultural, política, histórica, econômica, estética e ética, considerando, em especial, contextos próximos aos estudantes e as culturas infanto-juvenis(ES, CIA, DHC). | E18: X | G18: Não restringir o conceito de cultura ao conceito de cultura infanto juvenil.
B19: Ensino Fund. II - Ciências.xlsx | C19: CIÊNCIAS DA NATUREZA | E19: X | G19: Suprimir "investigando a fonte desses conhecimentos", colocando ponto final em sedimentares.
B20: Ensino Fund. II - Ciências.xlsx | C20: CIÊNCIAS DA NATUREZA | D20: (EF09CI03) Classificar riscos a que se expõem populações humanas, desde secas, erosão, deslizamentos, epidemias, até poluição de águas e do ar, identificando suas causas e efeitos sobre o ambiente e na vida humana. | E20: X | G20: Adicionar após secas: enchentes, radiação, poluição sonora...
B21: Ensino Fund. II - Ciências.xlsx | C21: CIÊNCIAS DA NATUREZA | D21: (EF06CI04) Reconhecer o efeito estufa e sua importância para a vida na Terra, e discutir o impacto do uso de combustíveis fósseis pelos meios de transporte e indústria na ampliação nociva do efeito estufa e outros impactos ambientais. | E21: X | G21: Suprimir após discutir e substituir por e discutir seus impactos ambientais.
B22: Ensino Fund. II - Ciências.xlsx | C22: CIÊNCIAS DA NATUREZA | D22: (EF07CI04) Relacionar a fotossíntese, a respiração celular e a combustão nos ciclos do carbono e do oxigênio para compreender o papel da vegetação na vida humana e animal, e discutir o impacto ambiental do desmatamento e das queimadas. | E22: X | G22: Suprimir humana e animal, substituir por dos seres vivos...
B23: Ensino Fund. II - Ciências.xlsx | C23: CIÊNCIAS DA NATUREZA | D23: (EF09CI05) Efetuar simulações ou representações do tamanho, distância movimento relativos dos planetas e do Sol, assim como de sua localização na galáxia para saber comparar as distâncias no interior do sistema solar e da galáxia. | E23: X | G23: Rever pontuação.
B24: Ensino Fund. II - Ciências.xlsx | C24: CIÊNCIAS DA NATUREZA | D24: (EF07CI10) Planejar e executar a construção de sistemas com equilíbrio estável, instável ou indiferente, presentes no dia adia elaborando explicações para essas condições. | E24: X | G24: Correção: dia a dia
B25: Ensino Fund. II - Educação Física.xlsx | C25: EDUCAÇÃO FÍSICA | D25: (EF06EF01) Experimentar os elementos comuns de diversos tipos de esportes, com ênfase nos esportes técnico-combinatórios, de marca, de campo-e-taco, precisão e invasão. | F25: X | G25: Não é um objetivo, porém, é um conteúdo.
B26: Ensino Fund. II - Educação Física.xlsx | C26: EDUCAÇÃO FÍSICA | D26: (EF06EF03) Fruir a experimentação de diversos tipos de esportes, valorizando o trabalho coletivo e o protagonismo. | F26: X | G26: o sentido é semelhante anterior.
B27: Ensino Fund. II - Educação Física.xlsx | C27: EDUCAÇÃO FÍSICA | D27: (EF06EF04) Formular e utilizar estratégias para identificar, analisar e buscar soluções nos desafios técnicos e táticos tanto dos esportes escolhidos para praticar de forma proficiente, como das modalidades experimentadas. | F27: X | G27: o objetivo se refere a prática docente e não a apresendizagem do aluno.
B28: Ensino Fund. II - Educação Física.xlsx | C28: EDUCAÇÃO FÍSICA | D28: (EF06EF05) Contribuir no enfrentamento de situações de injustiça e preconceito, geradas e/ou presentes no contexto da prática esportiva, com ênfase nas problemáticas de gênero e na produção de alternativas democráticas para sua superação.[DHC] | F28: X | G28: Esta formulado como objetivo da prática docente.
B29: Ensino Fund. II - Educação Física.xlsx | C29: EDUCAÇÃO FÍSICA | D29: (EF06EF06) Identificar os elementos técnicos ou técnico-táticos individuais e as principais regras das modalidades praticadas. | F29: X | G29: Não está pertinente a faixa etária.
B30: Ensino Fund. II - Educação Física.xlsx | C30: EDUCAÇÃO FÍSICA | D30: (EF06EF07) Distinguir os diversos tipos de esportes e recriar suas possibilidades de prática. | F30: X | G30: Não está pertinente a faixa etária, visto que o principal objetivo deste faixa etária é o desenvolvimento motor.
B31: Ensino Fund. II - Educação Física.xlsx | C31: EDUCAÇÃO FÍSICA | D31: (EF06EF08) Diferenciar esporte de outras manifestações da cultura corporal de movimento. | F31: X | G31: impertinente para faixa etária.
B32: Ensino Fund. II - Educação Física.xlsx | C32: EDUCAÇÃO FÍSICA | D32: (EF06EF09) Compreender as transformações dos esportes, as possibilidades de recriá-los, bem como as implicações na organização e na prática das suas diferentes manifestações (profissional e comunitário/lazer). | F32: X | G32: Exige mais aprendizado do que a faixa etária.
B33: Ensino Fund. II - Educação Física.xlsx | C33: EDUCAÇÃO FÍSICA | D33: (EF06EF11) Propor e produzir alternativas para experimentar esportes não disponíveis e/ou acessíveis na comunidade. | F33: X | G33: Este aspecto se refere ao professor.
B34: Ensino Fund. II - Educação Física.xlsx | C34: EDUCAÇÃO FÍSICA | D34: (EF06EF12) Experimentar e produzir composições ginásticas individuais e em grupos, a partir de diferentes temas, com e sem materiais. | F34: X | G34: Capacidade de criação não está apto para produção das compisções.
B35: Ensino Fund. II - Educação Física.xlsx | C35: EDUCAÇÃO FÍSICA | D35: (EF06EF14) Formular e utilizar estratégias para solucionar desafios surgidos no trabalho de composição ginástica, a partir de diferentes temas, com e sem materiais. | F35: X | G35: o objetivo se refere ao professor.
B36: Ensino Fund. II - Educação Física.xlsx | C36: EDUCAÇÃO FÍSICA | D36: (EF06EF15) Produzir e experimentar apresentações ginásticas coletivas, com base no reconhecimento das singularidades presentes no grupo, com ênfase nas questões de gênero.[DHC] | F36: X | G36: Quanta a questão de gênero.
B37: Ensino Fund. II - Educação Física.xlsx | C37: EDUCAÇÃO FÍSICA | D37: (EF06EF16) Reconhecer os procedimentos necessários para a elaboração de apresentações de ginástica, a partir de temas, com e sem materiais. | F37: X | G37: Relativo a faixa etária.
B38: Ensino Fund. II - Educação Física.xlsx | C38: EDUCAÇÃO FÍSICA | D38: (EF06EF25) Compreender as mudanças históricas nas demandas de atividade física (laboral, doméstica e de deslocamento) e seus vínculos com as ginásticas de condicionamento físico. | F38: X | G38: o nível de desenvolvimento dos estudantes.
B39: Ensino Fund. II - Educação Física.xlsx | C39: EDUCAÇÃO FÍSICA | D39: (EF06EF26) Experimentar e recriar diferentes lutas presentes na cultura brasileira e realizar uma delas de forma proficiente (ex.: Capoeira, Huka-Huka, Luta Marajoara, dentre outras). [CIA] | F39: X | G39: o nível de desenvolvimento dos estudantes.
B40: Ensino Fund. II - Educação Física.xlsx | C40: EDUCAÇÃO FÍSICA | D40: (EF06EF28) Formular e utilizar estratégias básicas das lutas da cultura brasileira experimentadas. | F40: X | G40: o objetivo se refere ao professor.
B41: Ensino Fund. II - Educação Física.xlsx | C41: EDUCAÇÃO FÍSICA | D41: (EF06EF30) Identificar as características (códigos, rituais, elementos técnicotáticos, indumentária, materiais, instalações, instituições) das lutas da cultura brasileira. | F41: X | G41: nível de conhecimento dos estudantes.
B42: Ensino Fund. II - Geografia.xlsx | C42: CIÊN. HUMANAS GEOGRAFIA | D42: (EF08GE01) Conceituar Estado, nação, território, governo e país, para o entendimento de conflitos, tensões, organizações e blocos internacionais. | E42: X
B43: Ensino Fund. II - Geografia.xlsx | C43: CIÊN. HUMANAS GEOGRAFIA | D43: (EF07GE02) Analisar distribuição territorial, quantidade e densidade, aspectos de renda, gênero, idade, racialidade, etnicidade, mestiçagem e movimentos migratórios caracterizam a população brasileira. [DHC]. | E43: X | G43: após termo migratório,acrescentar"que"
B44: Ensino Fund. II - Geografia.xlsx | C44: CIÊN. HUMANAS GEOGRAFIA | D44: (EF07GE03) Reconhecer as territorialidades indígenas, de remanescentes de quilombolas, de povos das florestas e do cerrado, de ribeirinhos e caiçaras, entre outros grupos sociais do campo e da cidade, como direitos legais dessas comunidades [CIA] [DHC]. | E44: X | G44: suprimir o "de" depois de remanescentes
B45: Ensino Fund. II - Geografia.xlsx | C45: CIÊN. HUMANAS GEOGRAFIA | D45: (EF06GE07) Analisar como diferentes linguagens apresentam fatos, fenômenos e processos naturais e sociais [CD] [EA]. | E45: X | G45: Inserir quais linguagens serão utilizadas
B46: Ensino Fund. II - História.xlsx | C46: CIÊN. HUMANAS HISTÓRIA | D46: (EF07HI01) Compreender o significado do Renascimento e do Humanismo. | E46: X | G46: Relacionar que não existe apenas um significado
B47: Ensino Fund. II - História.xlsx | C47: CIÊN. HUMANAS HISTÓRIA | D47: (EF07HI05) Destacar a importância da ação missionária na América Ibérica, percebendo a violência implícita na catequese. | E47: X | G47: Não há a necessidade de julgar um termo como importante ou não... Conceito ultrapassado.
B48: Ensino Fund. II - História.xlsx | C48: CIÊN. HUMANAS HISTÓRIA | D48: (EF06HI10) Conhecer a relação entre patrícios e plebeus. | E48: X | G48: Deve-se analisar também os outros agentes sociais envolvidas nessa proposta e os tipos de relação. .
B49: Ensino Fund. II - História.xlsx | C49: CIÊN. HUMANAS HISTÓRIA | D49: (EF06HI11) Reconhecer e analisar as principais características da escravidão na Antiguidade. | E49: X | G49: Limitar qual período e sociedade da Antiguidade.
B50: Ensino Fund. II - História.xlsx | C50: CIÊN. HUMANAS HISTÓRIA | D50: (EF06HI12) Identificar os principais aspectos da expansão territorial de Roma na Península Itálica, em regiões da Europa, da África e do Oriente Médio. | E50: X | G50: Definir quais são os aspectos mencionados.
B51: Ensino Fund. II - História.xlsx | C51: CIÊN. HUMANAS HISTÓRIA | D51: (EF06HI13) Analisar aspectos que mostram continuidades entre o helenismo e a cultura romana. | E51: X
B52: Ensino Fund. II - História.xlsx | C52: CIÊN. HUMANAS HISTÓRIA | D52: (EF06HI15) Identificar relações entre o Cristianismo, o povo hebreu e o Judaísmo. | E52: X | G52: Redundância - povo hebreu e judaísmo
B53: Ensino Fund. II - História.xlsx | C53: CIÊN. HUMANAS HISTÓRIA | D53: (EF06HI20) Identificar a fragmentação do poder político e a primazia cultural e política da Igreja Católica. | E53: X | G53: A ideia de primazia da Igreja é muito frágil
B54: Ensino Fund. II - História.xlsx | C54: CIÊN. HUMANAS HISTÓRIA | D54: (EF06HI01) Conhecer a história da Grécia antiga, com ênfase no processo de surgimento da polis e da Filosofia. | F54: X | G54: O objetivo não condiz com sequência comum dos estudos da História.
B55: Ensino Fund. II - História.xlsx | C55: CIÊN. HUMANAS HISTÓRIA | D55: (EF07HI05) Destacar a importância da ação missionária na América Ibérica, percebendo a violência implícita na catequese. | F55: X | G55: Não há a necessidade de julgar um termo como importante ou não... Conceito ultrapassado.
B56: Ensino Fund. II - História.xlsx | C56: CIÊN. HUMANAS HISTÓRIA | D56: (EF06HI20) Identificar a fragmentação do poder político e a primazia cultural e política da Igreja Católica. | F56: X | G56: A ideia de primazia da Igreja é muito frágil
B57: Ensino Fund. II - Língua Estrangeira.xlsx | C57: LÍNGUA ESTRANGEIRA | D57: (EF06LE05) Interagir por meio de textos em língua estrangeira sobre questões relacionadas ao convívio nos diferentes espaços em que atua, apropriando-se de recursos linguístico-discursivos e culturais para se posicionar frente a responsabilidades individuais e coletivas. | F57: X | G57: O grupo considera esse objetivo muito complexo para essa faixa etária, uma vez que, a maioria dos estudantes tem o primeiro contato com uma língua estrangeira nesse ano específico.
B58: Ensino Fund. II - Língua Portuguesa.xlsx | C58: LÍNGUA PORTUGUESA | D58: (EF06LP01) Ler textos de diferentes gêneros, literários e não literários (impressos ou eletrônicos), que circulam em diferentes esferas sociais, mais extensos e com vocabulário variado. | F58: X | G58: Deve-se acrescentar ao final: "e pouco usual"
B59: Ensino Fund. II - Língua Portuguesa.xlsx | C59: LÍNGUA PORTUGUESA | D59: (EF06LP07) Comparar, numa narrativa, o uso dos tempos verbais: o pretérito perfeito; o pretérito imperfeito; o pretérito maisque- perfeito e suas funções. | F59: X | G59: No 6º ano, substituir comparar por recomnhecer; acrescentar esse Direito no 7º ano pondo Reconhecer e Comparar.
B60: Ensino Fund. II - Matemática.xlsx | C60: MATEMÁTICA. | D60: (EF09MT04) Determinar o ponto médio de um segmento de reta e a distância entre dois pontos quaisquer no plano cartesiano, sem o uso de fórmulas, utilizando esse conhecimento para calcular medidas de perímetros e áreas de figuras planas, entre outros. | E60: X | G60: Sugerir métodos com o uso de instrumentos de medidas(régua, compasso e outros).
B61: Ensino Médio - Biologia.xlsx | C61: EM - BIOLOGIA | E61: X | G61: Adicionar após contaminação: sintomas
B62: Ensino Médio - Biologia.xlsx | C62: EM - BIOLOGIA | D62: (EM33CN05) Compreender o papel das divisões celulares por mitose no processo de regeneração dos tecidos e na reprodução assexuada nos eucariontes e procariontes e o papel da meiose no processo de gametogênese, promoção da variabilidade genética e transmissão precisa de características hereditárias e manutenção da vida dos organismos | E62: X | G62: Adicionar após tecidos: "crescimento do indivíduo, substituição de células velhas por células novas". Adicionar também após "genética", "evolução".
B63: Ensino Médio - Biologia.xlsx | C63: EM - BIOLOGIA | D63: (EM32CN07) Aplicar o conceito de biodiversidades na resolução de problemas sociocientíficos e processos relevantes para a sociedade. | E63: X | G63: Substituir o termo "conceito" por "conhecimento"
B64: Ensino Médio - Biologia.xlsx | C64: EM - BIOLOGIA | D64: (EM33CN07) Reconhecer que a manutenção dos organismos ocorre em função de interações com os ambientes bióticos e abióticos e que suas propriedades são resultantes de evolução | E64: X | G64: Substituir a palavra "propriedades" por "características"
B65: Ensino Médio - Educação física.xlsx | C65: EM - EDUCAÇÃO FÍSICA | D65: (EM40LI07) Diferenciar e reconhecer as modalidades esportivas com base nos critérios da lógica interna. | E65: X | G65: Com base na regra.
B66: Ensino Médio - Educação física.xlsx | C66: EM - EDUCAÇÃO FÍSICA | D66: (EM40LI13) Praticar um ou mais esportes, escolhidos pelo coletivo da escola, usando, de forma proficiente, as habilidades técnico-táticas, as combinações táticas básicas e os sistemas de jogo simples apreendidos em aula. | F66: X | G66: o significado da proficiencia pesa na correspondecia do resultado.
B67: Ensino Médio - Educação física.xlsx | C67: EM - EDUCAÇÃO FÍSICA | D67: (EM40LI16) Envolver-se e cooperar na produção de contextos de prática esportiva balizados por princípios de equidade e solidariedade, procurando oportunizar a participação e a fruição de todos/as. | F67: X | G67: dedivo a questão antagonica ao objetivo anterior.
B68: Ensino Médio - Educação física.xlsx | C68: EM - EDUCAÇÃO FÍSICA | D68: (EM40LI17) Identificar os elementos de desempenho esportivo das modalidades escolhidas pelo coletivo da escola para praticá-las de forma proficiente. | F68: X | G68: prioriza o esporte de rendimento.
B69: Ensino Médio - Educação física.xlsx | C69: EM - EDUCAÇÃO FÍSICA | D69: (EM40LI33) Realizar, de forma proficiente, exercícios físicos para o desenvolvimento das capacidades físicas. | F69: X | G69: pelo processo tecnicista referente a pratica de exercicios físicos.
B70: Ensino Médio - Sociologia.xlsx | C70: EM - SOCIOLOGIA | D70: (EM31CH02) Identificar a relação entre fenômenos sociais e contextos históricos | E70: X | G70: Explicitar os tipos de fenômenos sociais que devem ser abordados
B71: Ensino Médio - Arte.xlsx | C71: EM - ARTE | D71: (EM30LI10) Explorar a estrutura corporal identificando ossatura, musculatura e possibilidades articulares em processos técnico-criativos. | E71: X | G71: Esplorar no campo teórico ou nas ações corporais.
B72: Ensino Médio - Arte.xlsx | C72: EM - ARTE | D72: (EM30LI24) Apropriar-se de tecnologias para apreciar, produzir, registrar e compartilhar práticas e repertórios musicais de modo ético, considerando, em especial, as culturas juvenis (CD). | E72: X | G72: Não restringir o conceito de cultura ao conceito de cultura juvenil.
B73: Ensino Médio - Arte.xlsx | C73: EM - ARTE | D73: (EM30LI25) Compreender e valorizar o patrimônio musical, material e imaterial, de culturas diversas, em especial as de matriz africanas e indígenas, em diferentes épocas, privilegiando as culturas juvenis (CIA, DHC). | E73: X | G73: Não restringir o conceito de cultura ao conceito de cultura juvenil.
B74: Ensino Médio - Arte.xlsx | C74: EM - ARTE | D74: (EM30LI26) Analisar criticamente usos e funções da música em seus contextos de produção e circulação, considerando, em especial, contextos diversos e as culturas juvenis (ES). | E74: X | G74: Não restringir o conceito de cultura ao conceito de cultura juvenil.
B75: Ensino Médio - Arte.xlsx | C75: EM - ARTE | D75: (EM30LI28) Interagir criticamente com dispositivos e equipamentos culturais de circulação da música e do conhecimento musical, considerando, em especial, aqueles que contemplam as culturas juvenis. | E75: X | G75: Não restringir o conceito de cultura ao conceito de cultura juvenil.
B76: Ensino Médio - Arte.xlsx | C76: EM - ARTE | D76: (EM30LI29) Analisar criticamente práticas musicais nas suas relações com as esferas social, cultural, política, histórica, econômica, estética e ética, considerando, em especial, contextos diversos e as culturas juvenis (ES, CIA, DHC). | E76: X | G76: Não restringir o conceito de cultura ao conceito de cultura juvenil.
B77: Ensino Médio - Filosofia.xlsx | C77: EM - FILOSOFIA | D77: (EM41CH01) Realizar a experiência do pensar filosófico, diferenciando-o dos demais saberes e descobrindo sua presença implícita em conhecimentos anteriormente adquiridos, mas não filosoficamente problematizados. (ES, CIA, CD, DHC, EA) | E77: X | G77: Muita informção dentro de um só objetivo.

Sheet Resultados quantitativos
B2: Áreas | C2: Segmentos das áreas | D2: Quantidade de objetivos por segmento | E2: Quantidade de objetivos indicados por problemas de CLAREZA | F2: Quantidade de objetivos indicados por problemas de PERTINÊNCIA
B3: Educação Infantil (Bebês) | C3: O eu, o outro, o nós | D3: 5 | E3: =COUNTIFS(CONSOLIDAÇÃO!C:C,"O eu, o outro, o nós - Bebês",CONSOLIDAÇÃO!E:E,"X") -> 0 | F3: =COUNTIFS(CONSOLIDAÇÃO!C:C,"O eu, o outro, o nós - Bebês",CONSOLIDAÇÃO!F:F,"X") -> 1
C4: Corpo, gestos e mov. | D4: 5 | E4: =COUNTIFS(CONSOLIDAÇÃO!C:C,"Corpo, gestos e mov. - Bebês",CONSOLIDAÇÃO!E:E,"X") -> 1 | F4: =COUNTIFS(CONSOLIDAÇÃO!C:C,"Corpo, gestos e mov. - Bebês",CONSOLIDAÇÃO!F:F,"X") -> 0
C5: Escuta, fala, pens. | D5: 4 | E5: =COUNTIFS(CONSOLIDAÇÃO!C:C,"Escuta, fala, pens. - Bebês",CONSOLIDAÇÃO!E:E,"X") -> 0 | F5: =COUNTIFS(CONSOLIDAÇÃO!C:C,"Escuta, fala, pens. - Bebês",CONSOLIDAÇÃO!F:F,"X") -> 0
C6: Traços, sons, formas | D6: 5 | E6: =COUNTIFS(CONSOLIDAÇÃO!C:C,"Traços, sons, formas - Bebês",CONSOLIDAÇÃO!E:E,"X") -> 1 | F6: =COUNTIFS(CONSOLIDAÇÃO!C:C,"Traços, sons, formas - Bebês",CONSOLIDAÇÃO!F:F,"X") -> 0
C7: Espaços, tempos, qnt. | D7: 4 | E7: =COUNTIFS(CONSOLIDAÇÃO!C:C,"Espaços, tempos, qnt. - Bebês",CONSOLIDAÇÃO!E:E,"X") -> 1 | F7: =COUNTIFS(CONSOLIDAÇÃO!C:C,"Espaços, tempos, qnt. - Bebês",CONSOLIDAÇÃO!F:F,"X") -> 0
C8: TOTAL DA ÁREA | D8: =SUM(D3:D7) -> 23 | E8: =SUM(E3:E7) -> 3 | F8: 1
D9: =E8/D8 -> 0.1304347826 | F9: =F8/D8 -> 0.04347826087
B10: Educação Infantil (Bem pequenas) | C10: O eu, o outro, o nós | D10: 5 | E10: =COUNTIFS(CONSOLIDAÇÃO!C:C,"O eu, o outro, o nós - BP",CONSOLIDAÇÃO!E:E,"X") -> 0 | F10: =COUNTIFS(CONSOLIDAÇÃO!C:C,"O eu, o outro, o nós - BP",CONSOLIDAÇÃO!F:F,"X") -> 0
C11: Corpo, gestos e mov. | D11: 5 | E11: =COUNTIFS(CONSOLIDAÇÃO!C:C,"Corpo, gestos e mov. - BP",CONSOLIDAÇÃO!E:E,"X") -> 0 | F11: =COUNTIFS(CONSOLIDAÇÃO!C:C,"Corpo, gestos e mov. - BP",CONSOLIDAÇÃO!F:F,"X") -> 0
C12: Escuta, fala, pens. | D12: 5 | E12: =COUNTIFS(CONSOLIDAÇÃO!C:C,"Escuta, fala, pens. - BP",CONSOLIDAÇÃO!E:E,"X") -> 1 | F12: =COUNTIFS(CONSOLIDAÇÃO!C:C,"Escuta, fala, pens. - BP",CONSOLIDAÇÃO!F:F,"X") -> 0
C13: Traços, sons, formas | D13: 5 | E13: =COUNTIFS(CONSOLIDAÇÃO!C:C,"Traços, sons, formas - BP",CONSOLIDAÇÃO!E:E,"X") -> 0 | F13: =COUNTIFS(CONSOLIDAÇÃO!C:C,"Traços, sons, formas - BP",CONSOLIDAÇÃO!F:F,"X") -> 2
C14: Espaços, tempos, qnt. | D14: 5 | E14: =COUNTIFS(CONSOLIDAÇÃO!C:C,"Espaços, tempos, qnt. - BP",CONSOLIDAÇÃO!E:E,"X") -> 1 | F14: =COUNTIFS(CONSOLIDAÇÃO!C:C,"Espaços, tempos, qnt. - BP",CONSOLIDAÇÃO!F:F,"X") -> 0
C15: TOTAL DA ÁREA | D15: =SUM(D10:D14) -> 25 | E15: =SUM(E10:E14) -> 2 | F15: 2
D16: =E15/D15 -> 0.08 | F16: =F15/D15 -> 0.08
B17: Educação Infantil (Pequenas) | C17: O eu, o outro, o nós | D17: 5 | E17: =COUNTIFS(CONSOLIDAÇÃO!C:C,"O eu, o outro, o nós - Pequenas",CONSOLIDAÇÃO!E:E,"X") -> 0 | F17: =COUNTIFS(CONSOLIDAÇÃO!C:C,"O eu, o outro, o nós - Pequenas",CONSOLIDAÇÃO!F:F,"X") -> 0
C18: Corpo, gestos e mov. | D18: 5 | E18: =COUNTIFS(CONSOLIDAÇÃO!C:C,"Corpo, gestos e mov. - Pequenas",CONSOLIDAÇÃO!E:E,"X") -> 0 | F18: =COUNTIFS(CONSOLIDAÇÃO!C:C,"Corpo, gestos e mov. - Pequenas",CONSOLIDAÇÃO!F:F,"X") -> 1
C19: Escuta, fala, pens. | D19: 5 | E19: =COUNTIFS(CONSOLIDAÇÃO!C:C,"Escuta, fala, pens. - Pequenas",CONSOLIDAÇÃO!E:E,"X") -> 0 | F19: =COUNTIFS(CONSOLIDAÇÃO!C:C,"Escuta, fala, pens. - Pequenas",CONSOLIDAÇÃO!F:F,"X") -> 1
C20: Traços, sons, formas | D20: 5 | E20: =COUNTIFS(CONSOLIDAÇÃO!C:C,"Traços, sons, formas - Pequenas",CONSOLIDAÇÃO!E:E,"X") -> 0 | F20: =COUNTIFS(CONSOLIDAÇÃO!C:C,"Traços, sons, formas - Pequenas",CONSOLIDAÇÃO!F:F,"X") -> 0
C21: Espaços, tempos, qnt. | D21: 5 | E21: =COUNTIFS(CONSOLIDAÇÃO!C:C,"Espaços, tempos, qnt. - Pequena",CONSOLIDAÇÃO!E:E,"X") -> 0 | F21: =COUNTIFS(CONSOLIDAÇÃO!C:C,"Espaços, tempos, qnt. - Pequena",CONSOLIDAÇÃO!F:F,"X") -> 0
C22: TOTAL DA ÁREA | D22: =SUM(D17:D21) -> 25 | E22: =SUM(E17:E21) -> 0 | F22: 2
D23: 0.04 | F23: =F22/D22 -> 0.08
B24: Ensino Fund. I (1º, 2º e 3º anos) | C24: Língua Portuguesa | D24: 147 | E24: =COUNTIFS(CONSOLIDAÇÃO!C:C,"LINGUAGENS. LÍNGUA PORT I",CONSOLIDAÇÃO!E:E,"X") -> 0 | F24: =COUNTIFS(CONSOLIDAÇÃO!C:C,"LINGUAGENS. LÍNGUA PORT I",CONSOLIDAÇÃO!F:F,"X") -> 2
C25: Arte | D25: 36 | E25: =COUNTIFS(CONSOLIDAÇÃO!C:C,"LINGUAGENS. ARTE I",CONSOLIDAÇÃO!E:E,"X") -> 0 | F25: =COUNTIFS(CONSOLIDAÇÃO!C:C,"LINGUAGENS. ARTE I",CONSOLIDAÇÃO!F:F,"X") -> 0
C26: Educação Física | D26: 27 | E26: =COUNTIFS(CONSOLIDAÇÃO!C:C,"LINGUAGENS. ED. FÍSICA I",CONSOLIDAÇÃO!E:E,"X") -> 0 | F26: =COUNTIFS(CONSOLIDAÇÃO!C:C,"LINGUAGENS. ED. FÍSICA I",CONSOLIDAÇÃO!F:F,"X") -> 0
C27: Matemática | D27: 51 | E27: =COUNTIFS(CONSOLIDAÇÃO!C:C,"MATEMÁTICA I",CONSOLIDAÇÃO!E:E,"X") -> 0 | F27: =COUNTIFS(CONSOLIDAÇÃO!C:C,"MATEMÁTICA I",CONSOLIDAÇÃO!F:F,"X") -> 0
C28: Ciências | D28: 35 | E28: =COUNTIFS(CONSOLIDAÇÃO!C:C,"CIÊNCIAS I",CONSOLIDAÇÃO!E:E,"X") -> 0 | F28: =COUNTIFS(CONSOLIDAÇÃO!C:C,"CIÊNCIAS I",CONSOLIDAÇÃO!F:F,"X") -> 0
C29: História | D29: 59 | E29: =COUNTIFS(CONSOLIDAÇÃO!C:C,"CIÊN. HUMANAS HISTÓRIA I",CONSOLIDAÇÃO!E:E,"X") -> 0 | F29: =COUNTIFS(CONSOLIDAÇÃO!C:C,"CIÊN. HUMANAS HISTÓRIA I",CONSOLIDAÇÃO!F:F,"X") -> 0
C30: Geografia | D30: 18 | E30: =COUNTIFS(CONSOLIDAÇÃO!C:C,"CIÊN. HUMANAS GEOGRAFIA I",CONSOLIDAÇÃO!E:E,"X") -> 0 | F30: =COUNTIFS(CONSOLIDAÇÃO!C:C,"CIÊN. HUMANAS GEOGRAFIA I",CONSOLIDAÇÃO!F:F,"X") -> 0
C31: Ensino Religioso | D31: 15 | E31: =COUNTIFS(CONSOLIDAÇÃO!C:C,"ENSINO RELIGIOSO I",CONSOLIDAÇÃO!E:E,"X") -> 0 | F31: =COUNTIFS(CONSOLIDAÇÃO!C:C,"ENSINO RELIGIOSO I",CONSOLIDAÇÃO!F:F,"X") -> 0
C32: TOTAL DA ÁREA | D32: =SUM(D24:D31) -> 388 | E32: =SUM(E24:E31) -> 0 | F32: 2
D33: =E32/D32 -> 0 | F33: =F32/D32 -> 0.005154639175
B34: Ensino Fund. I (4º e 5º anos) | C34: Língua Portuguesa | D34: 82 | E34: =COUNTIFS(CONSOLIDAÇÃO!C:C,"LINGUAGENS. LÍNGUA PORT",CONSOLIDAÇÃO!E:E,"X") -> 0 | F34: =COUNTIFS(CONSOLIDAÇÃO!C:C,"LINGUAGENS. LÍNGUA PORT",CONSOLIDAÇÃO!F:F,"X") -> 0
C35: Arte | D35: 36 | E35: =COUNTIFS(CONSOLIDAÇÃO!C:C,"LINGUAGENS. ARTE",CONSOLIDAÇÃO!E:E,"X") -> 0 | F35: =COUNTIFS(CONSOLIDAÇÃO!C:C,"LINGUAGENS. ARTE",CONSOLIDAÇÃO!F:F,"X") -> 0
C36: Educação Física | D36: 61 | E36: =COUNTIFS(CONSOLIDAÇÃO!C:C,"LINGUAGENS. ED. FÍSICA",CONSOLIDAÇÃO!E:E,"X") -> 0 | F36: =COUNTIFS(CONSOLIDAÇÃO!C:C,"LINGUAGENS. ED. FÍSICA",CONSOLIDAÇÃO!F:F,"X") -> 0
C37: Matemática | D37: 44 | E37: =COUNTIFS(CONSOLIDAÇÃO!C:C,"MATEMÁTICA",CONSOLIDAÇÃO!E:E,"X") -> 0 | F37: =COUNTIFS(CONSOLIDAÇÃO!C:C,"MATEMÁTICA",CONSOLIDAÇÃO!F:F,"X") -> 0
C38: Ciências | D38: 23 | E38: =COUNTIFS(CONSOLIDAÇÃO!C:C,"CIÊNCIAS",CONSOLIDAÇÃO!E:E,"X") -> 0 | F38: =COUNTIFS(CONSOLIDAÇÃO!C:C,"CIÊNCIAS",CONSOLIDAÇÃO!F:F,"X") -> 0
C39: História | D39: 40 | E39: =COUNTIFS(CONSOLIDAÇÃO!C:C,"CIÊN. HUMANAS HIST.",CONSOLIDAÇÃO!E:E,"X") -> 0 | F39: =COUNTIFS(CONSOLIDAÇÃO!C:C,"CIÊN. HUMANAS HISTÓRIA",CONSOLIDAÇÃO!F:F,"X") -> 3
C40: Geografia | D40: 13 | E40: =COUNTIFS(CONSOLIDAÇÃO!C:C,"CIÊN. HUMANAS GEO.",CONSOLIDAÇÃO!E:E,"X") -> 0 | F40: =COUNTIFS(CONSOLIDAÇÃO!C:C,"CIÊN. HUMANAS GEOGRAFIA",CONSOLIDAÇÃO!F:F,"X") -> 0
C41: Ensino Religioso | D41: 10 | E41: =COUNTIFS(CONSOLIDAÇÃO!C:C,"ENSINO RELIGIOSO.",CONSOLIDAÇÃO!E:E,"X") -> 0 | F41: =COUNTIFS(CONSOLIDAÇÃO!C:C,"ENSINO RELIGIOSO",CONSOLIDAÇÃO!F:F,"X") -> 0
C42: TOTAL DA ÁREA | D42: =SUM(D34:D41) -> 309 | E42: =SUM(E34:E41) -> 0 | F42: 3
D43: =E42/D42 -> 0 | F43: =F42/D42 -> 0.009708737864
B44: Ensino Fund. II | C44: Arte | D44: 39 | E44: =COUNTIFS(CONSOLIDAÇÃO!C:C,"Artes",CONSOLIDAÇÃO!E:E,"X") -> 5 | F44: =COUNTIFS(CONSOLIDAÇÃO!C:C,"Artes",CONSOLIDAÇÃO!F:F,"X") -> 0
C45: Ciências | D45: 38 | E45: =COUNTIFS(CONSOLIDAÇÃO!C:C,"ciências da Natureza",CONSOLIDAÇÃO!E:E,"X") -> 6 | F45: =COUNTIFS(CONSOLIDAÇÃO!C:C,"ciências da Natureza",CONSOLIDAÇÃO!F:F,"X") -> 0
C46: Educação Física | D46: 90 | E46: =COUNTIFS(CONSOLIDAÇÃO!C:C,"Educação Física",CONSOLIDAÇÃO!E:E,"X") -> 0 | F46: =COUNTIFS(CONSOLIDAÇÃO!C:C,"Educação Física",CONSOLIDAÇÃO!F:F,"X") -> 17
C47: Ensino Religioso | D47: 38 | E47: =COUNTIFS(CONSOLIDAÇÃO!C:C,"Ensino Religioso",CONSOLIDAÇÃO!E:E,"X") -> 0 | F47: =COUNTIFS(CONSOLIDAÇÃO!C:C,"Ensino Religioso",CONSOLIDAÇÃO!F:F,"X") -> 0
C48: Geografia | D48: 36 | E48: =COUNTIFS(CONSOLIDAÇÃO!C:C,"CIÊN. HUMANAS GEOGRAFIA",CONSOLIDAÇÃO!E:E,"X") -> 4 | F48: =COUNTIFS(CONSOLIDAÇÃO!C:C,"CIÊN. HUMANAS GEOGRAFIA",CONSOLIDAÇÃO!F:F,"X") -> 0
C49: História | D49: 122 | E49: =COUNTIFS(CONSOLIDAÇÃO!C:C,"CIÊN. HUMANAS HISTÓRIA",CONSOLIDAÇÃO!E:E,"X") -> 8 | F49: =COUNTIFS(CONSOLIDAÇÃO!C:C,"CIÊN. HUMANAS HISTÓRIA",CONSOLIDAÇÃO!F:F,"X") -> 3
C50: Língua Estrangeira | D50: 32 | E50: =COUNTIFS(CONSOLIDAÇÃO!C:C,"Língua Estrangeira",CONSOLIDAÇÃO!E:E,"X") -> 0 | F50: =COUNTIFS(CONSOLIDAÇÃO!C:C,"Língua Estrangeira",CONSOLIDAÇÃO!F:F,"X") -> 1
C51: Língua Portuguesa | D51: 164 | E51: =COUNTIFS(CONSOLIDAÇÃO!C:C,"Língua Portuguesa",CONSOLIDAÇÃO!E:E,"X") -> 0 | F51: =COUNTIFS(CONSOLIDAÇÃO!C:C,"Língua Portuguesa",CONSOLIDAÇÃO!F:F,"X") -> 2
C52: Matemática | D52: 75 | E52: =COUNTIFS(CONSOLIDAÇÃO!C:C,"MATEMÁTICA.",CONSOLIDAÇÃO!E:E,"X") -> 1 | F52: =COUNTIFS(CONSOLIDAÇÃO!C:C,"MATEMÁTICA.",CONSOLIDAÇÃO!F:F,"X") -> 0
C53: TOTAL DA ÁREA | D53: =SUM(D44:D52) -> 634 | E53: =SUM(E44:E52) -> 24 | F53: 23
D54: =E53/D53 -> 0.03785488959 | F54: =F53/D53 -> 0.03627760252
B55: Ensino Médio | C55: Arte | D55: 41 | E55: =COUNTIFS(CONSOLIDAÇÃO!C:C,"EM - ARTES",CONSOLIDAÇÃO!E:E,"X") -> 0 | F55: =COUNTIFS(CONSOLIDAÇÃO!C:C,"EM - ARTES",CONSOLIDAÇÃO!F:F,"X") -> 0
C56: Biologia | D56: 37 | E56: =COUNTIFS(CONSOLIDAÇÃO!C:C,"EM - BIOLOGIA",CONSOLIDAÇÃO!E:E,"X") -> 4 | F56: =COUNTIFS(CONSOLIDAÇÃO!C:C,"EM - BIOLOGIA",CONSOLIDAÇÃO!F:F,"X") -> 0
C57: Educação Física | D57: 92 | E57: =COUNTIFS(CONSOLIDAÇÃO!C:C,"EM - EDUCAÇÃO FÍSICA",CONSOLIDAÇÃO!E:E,"X") -> 1 | F57: =COUNTIFS(CONSOLIDAÇÃO!C:C,"EM - EDUCAÇÃO FÍSICA",CONSOLIDAÇÃO!F:F,"X") -> 4
C58: Filosofia | D58: 16 | E58: =COUNTIFS(CONSOLIDAÇÃO!C:C,"EM - FILOSOFIA",CONSOLIDAÇÃO!E:E,"X") -> 1 | F58: =COUNTIFS(CONSOLIDAÇÃO!C:C,"EM - FILOSOFIA",CONSOLIDAÇÃO!F:F,"X") -> 0
C59: Física | D59: 53 | E59: =COUNTIFS(CONSOLIDAÇÃO!C:C,"EM - FÍSICA",CONSOLIDAÇÃO!E:E,"X") -> 0 | F59: =COUNTIFS(CONSOLIDAÇÃO!C:C,"EM - FÍSICA",CONSOLIDAÇÃO!F:F,"X") -> 0
C60: Geografia | D60: 25 | E60: =COUNTIFS(CONSOLIDAÇÃO!C:C,"EM - GEOGRAFIA",CONSOLIDAÇÃO!E:E,"X") -> 0 | F60: =COUNTIFS(CONSOLIDAÇÃO!C:C,"EM - GEOGRAFIA",CONSOLIDAÇÃO!F:F,"X") -> 0
C61: História | D61: 48 | E61: =COUNTIFS(CONSOLIDAÇÃO!C:C,"EM - HISTÓRIA",CONSOLIDAÇÃO!E:E,"X") -> 0 | F61: =COUNTIFS(CONSOLIDAÇÃO!C:C,"EM - HISTÓRIA",CONSOLIDAÇÃO!F:F,"X") -> 0
C62: Língua Estrangeira | D62: 16 | E62: =COUNTIFS(CONSOLIDAÇÃO!C:C,"EM - LÍNGUA ESTRANGEIRA",CONSOLIDAÇÃO!E:E,"X") -> 0 | F62: =COUNTIFS(CONSOLIDAÇÃO!C:C,"EM - LÍNGUA ESTRANGEIRA",CONSOLIDAÇÃO!F:F,"X") -> 0
C63: Língua Portuguesa | D63: 76 | E63: =COUNTIFS(CONSOLIDAÇÃO!C:C,"EM - LÍNGUA PORTUGUESA",CONSOLIDAÇÃO!E:E,"X") -> 0 | F63: =COUNTIFS(CONSOLIDAÇÃO!C:C,"EM - LÍNGUA PORTUGUESA",CONSOLIDAÇÃO!F:F,"X") -> 0
C64: Matemática | D64: 56 | E64: =COUNTIFS(CONSOLIDAÇÃO!C:C,"EM - MATEMÁTICA",CONSOLIDAÇÃO!E:E,"X") -> 0 | F64: =COUNTIFS(CONSOLIDAÇÃO!C:C,"EM - MATEMÁTICA",CONSOLIDAÇÃO!F:F,"X") -> 0
C65: Química | D65: 40 | E65: =COUNTIFS(CONSOLIDAÇÃO!C:C,"EM - QUÍMICA",CONSOLIDAÇÃO!E:E,"X") -> 0 | F65: =COUNTIFS(CONSOLIDAÇÃO!C:C,"EM - QUÍMICA",CONSOLIDAÇÃO!F:F,"X") -> 0
C66: Sociologia | D66: 36 | E66: =COUNTIFS(CONSOLIDAÇÃO!C:C,"EM - SOCIOLOGIA",CONSOLIDAÇÃO!E:E,"X") -> 1 | F66: =COUNTIFS(CONSOLIDAÇÃO!C:C,"EM - SOCIOLOGIA",CONSOLIDAÇÃO!F:F,"X") -> 0
C67: TOTAL DA ÁREA | D67: =SUM(D55:D66) -> 536 | E67: =SUM(E55:E66) -> 7 | F67: 4
D68: =E67/D67 -> 0.01305970149 | F68: =F67/D67 -> 0.007462686567
B69: TOTAL DE OBJETIVOS DE APRENDIZAGEM | C69: =SUM(D67,D53,D42,D32,D22,D15,D8) -> 1940 | D69: Porcentagem de objetivos indicados por problemas de CLAREZA | E69: =SUM(E67,E53,E42,E32,E22,E15,E8) -> 36 | F69: =SUM(F67,F53,F42,F32,F22,F15,F8) -> 37
D70: Porcentagem de objetivos indicados por problemas de PERTINÊNCIA | E70: =E69/C69 -> 0.01855670103 | F70: =F69/C69 -> 0.01907216495
